Cogmind - Beta 16 @@@ ROGUE MODE // 2026.01.14 @ 15:28:32 Player: noklam Result: Destroyed by Y-54 Guardian with Gatling Laser Performance ------------- Evolutions (3) 1500 Regions Visited (6) 1200 Robots Destroyed (58) 290 Value Destroyed (1851) 1851 Prototype IDs (2) 40 Alien Tech Used (0) 0 Bonus (11) 11 TOTAL SCORE: 4892 Bonus ------- High Alert Combat Kills 11 Cogmind --------- Core Integrity 0/700 Matter 41/300 Energy 100/100 System Corruption 20% Temperature Cool (12) Movement Core (350) Ox6 Location -7/Factory Parts ------- > --- POWER (3) -------- (None) > --- PROPULSION (3) --- (None) > --- UTILITY (4) ------ Large Storage Unit > --- WEAPON (3) ------- (None) > --- INVENTORY (15) --- Enhanced Nuclear Core Large Storage Unit Small Matter Pod (0) Improved Terrain Scan Processor Advanced Terrain Scan Processor Kinecellerator Advanced Field Recycling Unit (0) High-powered Shotgun High-powered Shotgun Datajack Peak State ------------ > --- POWER ------------ Light Angular Momentum Engine > --- PROPULSION ------- Compact Wheel Armored Huge Wheel > --- UTILITY ---------- Large Storage Unit Improved Light Armor Plating Improved Medium Armor Plating Improved Medium Armor Plating > --- WEAPON ----------- Hardcell Cannon Mini Grenade Launcher Mini Grenade Launcher > --- INVENTORY -------- Enhanced Nuclear Core Large Storage Unit Improved Terrain Scan Processor Kinecellerator High-powered Shotgun High-powered Shotgun Mini Grenade Launcher Datajack [Rating: 39] Favorites ----------- Power Cooled Ion Engine Engine Cooled Ion Engine Propulsion Aluminum Leg Treads Advanced Treads Leg Aluminum Leg Wheel Wheel Utility Large Storage Unit Device Heat Sink Storage Large Storage Unit Hackware Hacking Suite Protection Improved Medium Armor Plating Weapon Mini Grenade Launcher Energy Cannon Particle Cannon Ballistic Gun Autogun Ballistic Cannon Assault Cannon Launcher Mini Grenade Launcher Slashing Weapon Blade Saw Build | -11 -10 -9 -8 -7 -7 -7 ------- Run | Yrd Mat Mat Mat Fac Was Fac Slots Evolved 6 | . . 2 2 2 . . Power 2 | . . . 1 1 . . Propulsion 1 | . . . 1 . . . Utility 2 | . . 1 . 1 . . Weapon 1 | . . 1 . . . . Parts Attached 66 | 6 8 14 28 4 5 1 Power 5 | 1 . 1 3 . . . Engine 5 | 1 . 1 3 . . . Core . | . . . . . . . Reactor . | . . . . . . . Propulsion 16 | 2 . 4 8 1 1 . Treads 1 | . . . 1 . . . Leg 3 | 2 . . 1 . . . Wheel 12 | . . 4 6 1 1 . Hover . | . . . . . . . Flight . | . . . . . . . Utility 16 | 1 4 2 6 1 2 . Device 1 | . 1 . . . . . Storage 8 | 1 3 2 2 . . . Processor . | . . . . . . . Hackware 1 | . . . 1 . . . Protection 6 | . . . 3 1 2 . Artifact . | . . . . . . . Weapon 29 | 2 4 7 11 2 2 1 Energy Gun . | . . . . . . . Energy Cannon 1 | . . 1 . . . . Ballistic Gun 16 | 2 4 5 5 . . . Ballistic Cannon 3 | . . 1 1 . 1 . Launcher 8 | . . . 5 2 1 . Special Weapon . | . . . . . . . Impact Weapon . | . . . . . . . Slashing Weapon 1 | . . . . . . 1 Piercing Weapon . | . . . . . . . Special Melee Weapon . | . . . . . . . Unidentified Prototypes . | . . . . . . . Parts Lost 28 | . . 1 16 3 5 3 Power 3 | . . . 2 . 1 . Propulsion 8 | . . 1 5 . . 2 Utility 6 | . . . 2 2 2 . Weapon 11 | . . . 7 1 2 1 Highest Loss Streak 11 | . . 1 11 1 4 2 To Critical Strikes 1 | . . 1 . . . . Average Backups 10 | 2 8 9 11 14 8 9 Power 1 | . 1 1 1 . 1 1 Propulsion 1 | 1 2 1 . 2 . . Utility 1 | . . . 1 4 3 5 Weapon 5 | 1 5 6 6 5 2 2 Tool/Special . | . . . . . . . Unused Backups 34 | . 8 4 9 3 . 10 Power 3 | . . 1 1 . . 1 Propulsion 5 | . 2 1 . 2 . . Utility 13 | . . . 6 1 . 6 Weapon 12 | . 6 2 2 . . 2 Tool/Special 1 | . . . . . . 1 Average Slot Usage (%) 81 | . 94 98 76 82 45 22 Engine 10 | . 14 11 8 15 3 . Leg 7 | . 28 3 3 . . . Wheel 11 | . . 17 10 18 15 11 Storage 21 | . 19 32 21 14 7 7 Protection 3 | . . . 4 13 7 . Ballistic Gun 17 | . 27 30 14 1 . . Ballistic Cannon 1 | . . 1 2 . 1 . Launcher 6 | . . . 9 18 10 2 Peak Build Rating 39 | 6 10 16 28 37 39 15 Average Rating 17 | 4 9 14 19 32 21 11 On Entrance 14 | . 6 10 16 28 30 14 Avg Prop Armor Cover (%) 5 | . . . 5 . . . Naked Turns . | . . . . . . . Heaviest Build 58 | 13 24 44 52 54 58 22 Greatest Support 48 | 20 20 20 48 48 44 44 Greatest Overweight (x) 17 | . 1 4 11 17 1 7 Average Overweight (x) 1 | . . 1 1 1 . . Largest Inventory Capacity 25 | 8 25 15 15 15 15 15 Average Capacity 13 | 7 9 13 15 15 15 15 Most Carried 15 | 5 10 12 15 15 12 11 Average Carried 10 | 3 8 9 11 14 8 9 Final Capacity 15 | 8 10 15 15 15 15 15 Final Carried 15 | 4 10 12 15 11 8 10 Class Distribution -------------------- 37% | Gunner 37% | Mutant 22% | Tank Dominant Class ---------------- Mutant | -10/Materials Gunner | -9/Materials Gunner | -8/Materials Tank | -7/Factory Mutant | -7/Waste Mutant | -7/Factory Resources | -11 -10 -9 -8 -7 -7 -7 ----------- Run | Yrd Mat Mat Mat Fac Was Fac Matter Collected 2156 | 239 321 595 887 36 53 25 Remotely . | . . . . . . . Salvage Created 1850 | . 123 546 1038 118 . 25 Parts 120 | . 8 43 52 13 . 4 Haulers Intercepted . | . . . . . . . Recyclers Shooed 2 | . . . 1 1 . . Parts Field Recycled . | . . . . . . . Retrieved Matter . | . . . . . . . Parts Self-Destructed . | . . . . . . . Prevented . | . . . . . . . Parts Restored . | . . . . . . . Kills | -11 -10 -9 -8 -7 -7 -7 ------- Run | Yrd Mat Mat Mat Fac Was Fac Combat Hostiles Destroyed 46 | . 3 14 28 . . 1 Melee 1 | . . . . . . 1 Guns 35 | . 3 13 19 . . . Cannons 3 | . . 1 2 . . . AOE 7 | . . . 7 . . . Classes Destroyed 11 | . 1 4 5 1 . . Worker 4 | . . . 2 2 . . Builder 2 | . . . 1 1 . . Recycler 2 | . . . 1 1 . . Operator 1 | . . . . 1 . . Watcher 3 | . . 1 2 . . . Swarmer 11 | . . 4 6 . . 1 Grunt 25 | . 3 7 15 . . . Brawler 2 | . . 1 1 . . . Sentry 5 | . . 2 3 . . . Specialist 2 | . . . 2 . . . Heavy 1 | . . . 1 . . . Best Kill Streak 9 | . 2 4 9 2 . 1 Combat Bots Only 6 | . 2 4 6 . . 1 Max Kills in Single Turn 2 | . 1 1 2 2 . 1 Gunslinging . | . . . . . . . Exploded 2 | . . . 2 . . . Melee 1 | . . . . . . 1 Uniques/NPCs Destroyed . | . . . . . . . Combat | -11 -10 -9 -8 -7 -7 -7 -------- Run | Yrd Mat Mat Mat Fac Was Fac Hostile Shots Fired 495 | . 22 76 146 136 4 111 Missed 144 | . 6 14 38 54 1 31 Hits 351 | . 16 62 108 82 3 80 Melee 4 | . . 1 . . 3 . Projectile 347 | . 16 61 108 82 . 80 Critical Strikes 14 | . . 2 9 . 2 1 Damage Taken 4618 | . 176 659 1868 892 181 842 Core 1215 | . 54 158 299 130 . 574 Absorbed by Shields . | . . . . . . . Core Remaining (%) 70 | 100 78 60 45 . . . Volleys Fired 118 | . 10 34 67 5 2 . Largest 3 | . 2 3 3 3 1 . Hottest 124 | . 46 124 91 90 30 . Shots Fired 326 | . 20 100 190 13 3 . Gun 244 | . 20 78 145 1 . . Cannon 46 | . . 22 24 . . . Launcher 36 | . . . 21 12 3 . Special . | . . . . . . . Kinetic 281 | . 20 91 169 1 . . Thermal 9 | . . 9 . . . . Explosive 36 | . . . 21 12 3 . Electromagnetic . | . . . . . . . Robot Hit Streak 14 | . 10 10 11 11 14 . Robot Miss Streak 7 | . 2 7 7 1 . . Penetration Max . | . . . . . . . Secondary Targets 4 | . . 1 3 . . . Max Gunslinging Chain 1 | . . 1 1 . . . Shots Hit Robots 203 | . 16 54 117 11 3 2 Core Hits 126 | . 6 28 74 14 1 3 Critical Kills . | . . . . . . . Critical Parts Destroyed 2 | . 2 . . . . . Critical Strikes 4 | . 2 . 1 . . 1 Destroy 2 | . 2 . . . . . Blast 1 | . . . 1 . . . Sever 1 | . . . . . . 1 Melee Attacks 4 | . . . . . . 4 Impact . | . . . . . . . Slashing 4 | . . . . . . 4 Piercing . | . . . . . . . Sneak Attacks . | . . . . . . . Combat Hostiles . | . . . . . . . Follow-up Attacks . | . . . . . . . Damage Inflicted 4714 | . 218 876 2854 442 266 58 Guns 2710 | . 218 738 1736 18 . . Cannons 279 | . . 81 198 . . . Explosions 1510 | . . . 852 392 266 . Melee 37 | . . . . . . 37 Ramming 178 | . . 57 68 32 . 21 Kinetic 2969 | . 218 799 1934 18 . . Thermal 20 | . . 20 . . . . Explosive 1510 | . . . 852 392 266 . Electromagnetic . | . . . . . . . Impact . | . . . . . . . Slashing 37 | . . . . . . 37 Piercing . | . . . . . . . Highest Corruption 20 | . . 2 2 2 20 20 Average Corruption 8 | . . 2 2 1 12 20 Corruption Purged . | . . . . . . . Corruption Blocked . | . . . . . . . Effects 21 | . . 4 2 . 8 7 Message Errors 6 | . . 1 1 . 2 2 Matter Fused 1 | . . . . . . 1 Heat Flow Errors 3 | . . . 1 . 2 . Energy Discharges 3 | . . 1 . . 1 1 Parts Rejected 2 | . . 1 . . 1 . Data Loss (minor) 3 | . . 1 . . 1 1 Misfires 1 | . . . . . 1 . Misdirections 2 | . . . . . . 2 Overload Shots . | . . . . . . . Overflow Damage 33 | . . . 33 . . . Projectiles 10 | . . . 10 . . . Explosions 23 | . . . 23 . . . Melee . | . . . . . . . Knockbacks 4 | . . 2 2 . . . Impact . | . . . . . . . Kinetic 3 | . . 1 2 . . . Secondary 1 | . . 1 . . . . Self-Inflicted Damage 379 | . . 26 184 129 30 10 Shots 16 | . . . 10 4 2 . Rammed 29 | . . 12 7 6 . 4 Targets Rammed 29 | . . 12 7 6 . 4 Kicked . | . . . . . . . Crushed . | . . . . . . . Highest Temperature 431 | . 24 431 136 97 248 . Average Temperature 60 | . 9 124 26 38 97 . Received Heat Transfer 1029 | . 96 162 459 204 . 108 Effects 5 | . . 5 . . . . Energy Bleed 1 | . . 1 . . . . Interference 3 | . . 3 . . . . Damage (minor) 1 | . . 1 . . . . Siege Activations . | . . . . . . . Martial Activations . | . . . . . . . Shielding Activations . | . . . . . . . Robots Disrupted . | . . . . . . . Combat Hostiles . | . . . . . . . Robots Corrupted . | . . . . . . . Combat Hostiles . | . . . . . . . Parts Fried . | . . . . . . . Impact Corruptions 1 | . . 1 . . . . Robots Melted . | . . . . . . . Combat Hostiles . | . . . . . . . Parts Melted . | . . . . . . . Heat Transferred 37 | . . 37 . . . . Parts Sabotaged . | . . . . . . . Parts Stolen . | . . . . . . . Parts Stripped . | . . . . . . . Power Chain Reactions . | . . . . . . . Alert | -11 -10 -9 -8 -7 -7 -7 ------- Run | Yrd Mat Mat Mat Fac Was Fac Maximum Alert Level 2 | . . 1 2 . . . Low Security (%) 68 | 100 100 79 30 100 100 100 Level 1 29 | . . 20 64 . . . Level 2 1 | . . . 4 . . . Level 3 . | . . . . . . . Level 4 . | . . . . . . . Level 5 . | . . . . . . . High Security . | . . . . . . . Max Security . | . . . . . . . Peak Influence 411 | . 40 247 411 184 52 35 Initial 173 | . . . 76 173 52 . Average 135 | . 3 99 254 141 10 5 Influence Increases 1787 | . 80 455 996 198 9 49 Destroy 0b10 Robot/C 920 | . 60 280 560 . . 20 Destroy 0b10 Robot/NC 60 | . . 5 30 25 . . Destroy Leader 216 | . 20 62 134 . . . Successful Hack 14 | . . . . . . 14 Disable Machine 120 | . . . 90 30 . . Destroy Structure 187 | . . 3 122 53 9 . Lose Combat Pursuer 270 | . . 105 60 90 . 15 Influence Decreases 1772 | . 80 272 797 429 160 34 Entered New Map 415 | . . . 107 209 99 . Time Decay 1116 | . 80 262 530 190 30 24 Lost Part 221 | . . 10 160 30 11 10 Lost Ally 20 | . . . . . 20 . Squads Dispatched 11 | . 3 1 4 3 . . Investigation 2 | . 2 . . . . . Extermination 1 | . . . . 1 . . Reinforcement 6 | . 1 1 4 . . . Assault . | . . . . . . . Garrison 2 | . . . . 2 . . Intercept . | . . . . . . . Searches Triggered . | . . . . . . . Construction Impeded 1 | . . . 1 . . . Haulers Reinforced . | . . . . . . . Active Scanning Responses . | . . . . . . . Cargo Convoy Interrupts . | . . . . . . . Stealth | -11 -10 -9 -8 -7 -7 -7 --------- Run | Yrd Mat Mat Mat Fac Was Fac Distress Signals 9 | . 2 3 3 . . 1 Communications Jammed . | . . . . . . . Distress Signals . | . . . . . . . Times Spotted 95 | . 3 23 41 11 8 9 Peak Tracking Total 7 | . 2 7 7 5 6 7 Tactical Retreats 15 | . . 5 4 4 1 1 Traps | -11 -10 -9 -8 -7 -7 -7 ------- Run | Yrd Mat Mat Mat Fac Was Fac Traps Triggered 6 | . . 2 3 1 . . Indirectly . | . . . . . . . Trap Hack Attempts . | . . . . . . . Triggered . | . . . . . . . Disarmed . | . . . . . . . Reprogrammed . | . . . . . . . Reused . | . . . . . . . Traps Extracted . | . . . . . . . Installed . | . . . . . . . Triggered . | . . . . . . . Machines | -11 -10 -9 -8 -7 -7 -7 ---------- Run | Yrd Mat Mat Mat Fac Was Fac Machines Disabled 8 | . . . 6 2 . . Max in Single Turn 1 | . . . 1 1 . . Machines Repaired . | . . . . . . . Machines Dismantled . | . . . . . . . Machines Sabotaged . | . . . . . . . Overloaded Fab Kills . | . . . . . . . Hacking | -11 -10 -9 -8 -7 -7 -7 --------- Run | Yrd Mat Mat Mat Fac Was Fac Machines Accessed 9 | . 2 2 3 1 . 1 Terminals 5 | . 2 1 . 1 . 1 Fabricators . | . . . . . . . Repair Stations . | . . . . . . . Recycling Units 1 | . . . 1 . . . Scanalyzers 2 | . . 1 1 . . . Garrison Access 1 | . . . 1 . . . Total Hacks 22 | . 4 8 7 2 . 1 Successful 9 | . 2 3 2 1 . 1 Failed 11 | . 2 4 4 1 . . Catastrophic . | . . . . . . . Database Lockouts 2 | . . 1 1 . . . Manual . | . . . . . . . Terminals 9 | . 4 2 . 2 . 1 Fabricators . | . . . . . . . Repair Stations . | . . . . . . . Recycling Units 2 | . . . 2 . . . Scanalyzers 8 | . . 6 2 . . . Garrison Access 3 | . . . 3 . . . Terminal Hacks 4 | . 2 . . 1 . 1 Prototype ID Bank 1 | . 1 . . . . . Emergency Access Points 2 | . 1 . . . . 1 Alert Level 1 | . . . . 1 . . Fabricator Hacks . | . . . . . . . Repair Station Hacks . | . . . . . . . Recycling Unit Hacks 1 | . . . 1 . . . Retrieve Components 1 | . . . 1 . . . Scanalyzer 4 | . . 3 1 . . . Retrieve Study 4 | . . 3 1 . . . Garrison Access Hacks . | . . . . . . . Unauthorized Hacks . | . . . . . . . Terminals . | . . . . . . . Fabricators . | . . . . . . . Repair Stations . | . . . . . . . Recycling Units . | . . . . . . . Scanalyzers . | . . . . . . . Garrison Access . | . . . . . . . Data Cores Recovered . | . . . . . . . Used . | . . . . . . . Hacking Detections 6 | . 1 1 3 1 . . Full Trace Events . | . . . . . . . Feedback Events . | . . . . . . . Feedback Blocked . | . . . . . . . Robot Schematics Acquired . | . . . . . . . Robots Built . | . . . . . . . Authchips . | . . . . . . . Time . | . . . . . . . Total Robot Build Rating . | . . . . . . . Part Schematics Acquired . | . . . . . . . Parts Built . | . . . . . . . Authchips . | . . . . . . . Time . | . . . . . . . Total Part Build Rating . | . . . . . . . Part Studies Acquired 4 | . . 3 1 . . . Parts Repaired . | . . . . . . . Time . | . . . . . . . Parts Recycled . | . . . . . . . Recycled Matter . | . . . . . . . Retrieved Matter . | . . . . . . . Retrieved Components 10 | . . . 10 . . . Parts Scanalyzed . | . . . . . . . Part Schematics Acquired . | . . . . . . . Parts Damaged . | . . . . . . . Bothacking | -11 -10 -9 -8 -7 -7 -7 ------------ Run | Yrd Mat Mat Mat Fac Was Fac Used RIF Installer . | . . . . . . . Robots Hacked . | . . . . . . . Non-combat . | . . . . . . . Combat . | . . . . . . . Robot Hacks Applied . | . . . . . . . Relay Couplers Released . | . . . . . . . Fabnet Peak Effective % . | . . . . . . . Robots Rewired . | . . . . . . . Allies Hacked . | . . . . . . . Hacks Repelled . | . . . . . . . Allies | -11 -10 -9 -8 -7 -7 -7 -------- Run | Yrd Mat Mat Mat Fac Was Fac Total Allies 1 | . . . . . 1 . Largest Group 1 | . . . . . 1 . Highest-Rated Group 31 | . . . . . 31 . Highest-Rated Ally 31 | . . . . . 31 . Total Orders . | . . . . . . . Ally Attacks 2 | . . . . . 2 . Total Damage 43 | . . . . . 43 . Kills . | . . . . . . . Allies Corrupted . | . . . . . . . Allies Melted . | . . . . . . . Intel | -11 -10 -9 -8 -7 -7 -7 ------- Run | Yrd Mat Mat Mat Fac Was Fac Active Infowar (turns) . | . . . . . . . Robot Analysis Total . | . . . . . . . Derelict Logs Recovered . | . . . . . . . Drone Launches . | . . . . . . . Drone Recoveries . | . . . . . . . Exploration | -11 -10 -9 -8 -7 -7 -7 ------------- Run | Yrd Mat Mat Mat Fac Was Fac Turns Passed 3784 | 63 746 769 1481 389 181 155 Spaces Moved 2221 | 48 381 477 737 301 160 117 Core 33 | 11 . . 15 1 . 6 Treads 159 | . . . 159 . . . Legs 530 | 37 381 43 69 . . . Wheels 1499 | . . 434 494 300 160 111 Hover . | . . . . . . . Flight . | . . . . . . . Fastest Speed 50 | 50 120 95 95 115 100 100 Average Speed 137 | 103 173 113 156 117 102 113 Slowest Speed 900 | 120 190 190 600 900 115 400 Overloaded Moves . | . . . . . . . Propulsion Burnouts . | . . . . . . . Robots Hopped . | . . . . . . . Potential Cave-ins . | . . . . . . . Cave-ins Triggered . | . . . . . . . Exploration Rate (%) 39 | 3 58 39 67 11 90 6 Regions Visited 6 Branch Regions . Pre-discovered Areas . | . . . . . . . Known Exits Taken . | . . . . . . . Unknown Exits Taken 4 | 1 1 1 1 . . . Scrap Searched . | . . . . . . . Spaces Dug 19 | . . . 19 . . . Terrain Destroyed 224 | . . 1 139 73 11 . Melee . | . . . . . . . Projectile 12 | . . 1 11 . . . AOE 212 | . . . 128 73 11 . Terrain Rammed . | . . . . . . . Walls Destroyed . | . . . . . . . Machines Disabled . | . . . . . . . Actions | -11 -10 -9 -8 -7 -7 -7 --------- Run | Yrd Mat Mat Mat Fac Was Fac Total 2686 | 58 451 627 915 328 175 132 Wait 92 | . 20 43 28 . . 1 Move 2216 | 47 380 476 736 301 159 117 Hop . | . . . . . . . Pick Up 74 | 5 15 20 26 3 2 3 Fast Attach 32 | 5 5 6 12 2 2 . Attach 22 | 1 . 4 10 2 4 1 Detach 12 | . 4 2 3 . 2 1 Swap 29 | . 4 14 9 1 1 . Drop 58 | . 13 16 17 8 3 1 Fire 118 | . 10 34 67 5 2 . Melee 4 | . . . . . . 4 Ram 28 | . . 12 6 6 . 4 Kick . | . . . . . . . Crush 1 | . . . 1 . . . Escape Stasis . | . . . . . . . Rewire . | . . . . . . . Trap . | . . . . . . . Miscellaneous . | . . . . . . . Route ------- -11/Scrapyard -10/Materials (discovered 2 exits: *Mat / [*Min]) -9/Materials -8/Materials (discovered 2 exits: *Fac x2) -7/Factory -7/Waste -7/Factory (discovered 1 exit: [*Low]) History --------- Turn | Location | Event 4 | -11/Scrapyard | Discovered new exit (range 15) 64 | -11/Scrapyard | Entered Materials 65 | -10/Materials | Met a group of wandering Federalists 314 | -10/Materials | Build established: Mutant 457 | -10/Materials | Discovered new exit (range 8) 787 | -10/Materials | Discovered new exit (range 5) 810 | -10/Materials | Entered another Materials area 810 | -9/Materials | Evolved 2 slots: Utility x1, Weapon x1 824 | -9/Materials | Central database locked down 1099 | -9/Materials | Build established: Gunner 1426 | -9/Materials | Discovered new exit (range 14) 1579 | -9/Materials | Entered another Materials area 1579 | -8/Materials | Evolved 2 slots: Power x1, Propulsion x1 1830 | -8/Materials | Central database locked down 2106 | -8/Materials | Discovered new exit (range 10) 2212 | -8/Materials | Core integrity fell below 50% 2263 | -8/Materials | Lost 11 parts (2p2n1u6w) 2817 | -8/Materials | Build established: Tank 3044 | -8/Materials | Discovered new exit (range 12) 3060 | -8/Materials | Entered Factory 3060 | -7/Factory | Evolved 2 slots: Power x1, Utility x1 3270 | -7/Factory | Garrison activated, responded to threat 3449 | -7/Factory | Sucked down chute 3449 | -7/Factory | Entered Waste 3450 | -7/Waste | Met a frightened Derelict 3464 | -7/Waste | EMP discharged 3464 | -7/Waste | System corruption reached 10% 3472 | -7/Waste | Spotted C-40 Crusher 3490 | -7/Waste | Spotted C-40 Crusher 3491 | -7/Waste | Crushed by Compactor (1 part destroyed, 2 dropped) 3502 | -7/Waste | Spotted C-40 Crusher 3520 | -7/Waste | Spotted C-40 Crusher 3522 | -7/Waste | Crushed by Compactor (1 part destroyed, 1 dropped) 3527 | -7/Waste | Spotted C-40 Crusher 3528 | -7/Waste | Crushed by Compactor (1 part destroyed) 3559 | -7/Waste | Lost 4 parts (1p2u1w) 3564 | -7/Waste | EMP discharged 3578 | -7/Waste | Spotted C-40 Crusher 3615 | -7/Waste | Discovered new exit (range 16) 3630 | -7/Waste | Entered Factory 3710 | -7/Factory | Discovered new exit (range 8) 3769 | -7/Factory | Core integrity fell below 50% 3780 | -7/Factory | Core integrity fell below 20% 3785 | -7/Factory | Destroyed by Y-54 Guardian with Gatling Laser Last Messages --------------- 03706_ Connecting with Terminal... 03706_ Current location identified: Factory >>Access(Emergency) Found 1 emergency access door: (78,195) Map updated. 03710_ EXIT=FOUND 03715_ ICXZ#DQ=%B4,H3SKSZZXPAGV1EVI0JL 03721_ Acquired Unknown Slashing Weapon. 03736_ Acquired Sml. Matter Pod. 03741_ Com. Wheel destroyed. 03748_ Arm. Huge Wheel destroyed. 03752_ System corrupted: Component data lost. 03759_ Identified Blade Saw. 03760_ S-27 Virus destroyed. 03771_ 2A WONCR G#L1QRI3T4IJBEQQZCII9PGFTKL1D 03775_ Y-54 Guardian Lgt. Treads severed. 03779_ Blade Saw destroyed. 03781_ Slammed into Y-54 Guardian. 03784_ Acquired 25 matter. Map ----- +----------------------------------------------------+ | ?????????????????????????????????????????????????? | | ?????????????????????????????????????????????????? | | ?????????????????????????????????????????????????? | | ?????????????????????????????????????????????????? | | ?????????????????????????????????????????????????? | | ?????????????????????????????????????????????????? | | ?????????????????????????????????????????????????? | | ????????????????????????????????????????????????? | | ????????????????????????????????????????????????? | | #????????????????????????????????????????????????? | | #????????????????????????????????????????????????? | | #????????????????????????????????????????????????? | | #????????????????????????????????????????????????? | | #????????????????????????????????????????????????? | | #????????????????????????????????????????????????? | | #???????????????????????####?????????????????????? | | #?????????????????????? #?????????????????????? | | #???????????????????? #?????????????????????? | | #????????????????? """"""" #?????????????????????? | | #????????????????# """"""" #?????????????????????? | | #????????????????# """"""" #?????????????? #?????? | | #??????????????# # """"""" #????????????? #?????? | | #??????????????# / #???????????? #?????? | | ####?????????????# !Yss#???????????# #?????? | | #??????????## ###+####/##?????????? #?????? | | #????###???# [@############ #?????? | | +???? w Y=u #?????? | | " #????# #??# #?????? | | " #????# #??# #?????? | | " #??### #### #?????? | | " !#??# ## ###???? | | " #### ## ? | | " + " ## ? | | " #### ## ###+###### ? | | #??# [ ## # #????######??? | | = #??## ##? #### #????????????? | | ######## #?? ???# [[! #????????????? | | ??# #??? ???# [ ! #????????????? | | ### #???? ???# [! #????????????? | | # #?????? ???# #????????????? | | # ###+##???????###### ???# #????????????? | | # # ?????????????# #??# #????????????? | | ]+ + ?????????????# #??# #????????????? | | # # """"??????????### #### """ #????????????? | | # # """"??????????# ## """ #????????????? | | # # """" #????????# ## """ #????????????? | | # # """" #????????# < + #????????????? | | ### # """" #????????# ####+####????????????? | | ??# # """" #????????# #### ###?????????????? | | ??# #? ########### #?# #########?????? | +----------------------------------------------------+ Best States ------------- Heat Dissipation 35 Energy Generation 25 Energy Capacity 460 Matter Stores 600 Matter Capacity 600 Sight Range 16 Terrain Scan Density 10 Armor Coverage 600 Propulsion Shielding 33 Evasion (%) 55 Recoil Reduction 1 Offensive Hacking 10 Item Schematics ----------------- None Robot Schematics ------------------ None Fabricated ------------ Nothing Repaired ---------- Nothing Studied --------- Mni. Grenade Launcher | -9/Materials | Hacked Aluminum Leg | -9/Materials | Hacked Autogun | -9/Materials | Hacked Hpw. Shotgun | -8/Materials | Hacked Alien Tech Used ----------------- None Achievements -------------- Bumper Bots Ghost 'Em Heavy Suspicion Item+ Maybe Next Time I'll Detach My Launcher Challenges ------------ None Game ------ Seed MomentumCountertargetingLegs Manual? 0 Play Time 00:51:59 Cumulative 13.4 hours Start 2026.01.14 @ 14:36:31 End 2026.01.14 @ 15:28:32 Sessions 1 Manual Loads 0 Difficulty Rogue Special Mode None Game No. 21 Rogue 21 Adventurer 0 Explorer 0 Win Type - Total 0 Types 0/0/0/0/0/0/0/0/0/0 Lore% 9 Gallery% 17 Achievement% 11 Wizard Run 0 Options --------- Layout 1 ASCII 0 Keyboard 1 Movement Vi Keybinds 0 Fullscreen 1 Font 32/SmallcapsGlow Map View 50x35 Zoom Use 0% Tactical HUD 1 Map Filters NONE Filters NONE Steam 1 RUN: 7c93c5e6-f5d6-4449-acf9-512727c49c3c